[Event "Late-Titled-Tuesday-Blitz-February-06-2024"]
[Site "Chess.com"]
[Date "2024.02.06"]
[Round "3"]
[White "ChristopherYoo"]
[Black "Witik"]
[Result "1-0"]
[WhiteElo "3017"]
[BlackElo "2748"]
[TimeControl "180+1"]
[EndTime "14:25:38 PST"]
[Termination "ChristopherYoo won by resignation"]

1. e4 {[%clk 0:03:00.9]} 1... c6 {[%clk 0:02:48.3]} 2. Nf3 {[%clk 0:02:58.9]}
2... d5 {[%clk 0:02:48.3]} 3. exd5 {[%clk 0:02:55.6]} 3... cxd5 {[%clk
0:02:48.5]} 4. Ne5 {[%clk 0:02:54.7]} 4... Nf6 {[%clk 0:02:48.9]} 5. d4 {[%clk
0:02:53.3]} 5... g6 {[%clk 0:02:48.8]} 6. Bb5+ {[%clk 0:02:51.1]} 6... Nbd7
{[%clk 0:02:48.8]} 7. O-O {[%clk 0:02:51.2]} 7... Bg7 {[%clk 0:02:49.4]} 8. Re1
{[%clk 0:02:38.3]} 8... O-O {[%clk 0:02:49.4]} 9. Nd2 {[%clk 0:02:38.4]} 9... e6
{[%clk 0:02:25.4]} 10. Qe2 {[%clk 0:02:25.5]} 10... Qc7 {[%clk 0:02:13.2]} 11.
Ndf3 {[%clk 0:02:24.6]} 11... Ne4 {[%clk 0:02:12.8]} 12. Bf4 {[%clk 0:02:22.3]}
12... Nxe5 {[%clk 0:02:09.9]} 13. Bxe5 {[%clk 0:02:21.9]} 13... Qb6 {[%clk
0:02:04.4]} 14. Bxg7 {[%clk 0:02:17.8]} 14... Kxg7 {[%clk 0:02:04.5]} 15. c3
{[%clk 0:02:07.5]} 15... a6 {[%clk 0:01:57]} 16. Bd3 {[%clk 0:02:07.1]} 16...
Nf6 {[%clk 0:01:57.6]} 17. Qe5 {[%clk 0:02:01.3]} 17... Bd7 {[%clk 0:01:52.7]}
18. g4 {[%clk 0:01:58.6]} 18... h6 {[%clk 0:01:48.6]} 19. h4 {[%clk 0:01:57.1]}
19... Rh8 {[%clk 0:01:29.8]} 20. g5 {[%clk 0:01:55.5]} 20... hxg5 {[%clk
0:01:30.7]} 21. hxg5 {[%clk 0:01:55.4]} 21... Qd8 {[%clk 0:01:31.2]} 22. Kg2
{[%clk 0:01:52.6]} 1-0

[Event "Late-Titled-Tuesday-Blitz-February-06-2024"]
[Site "Chess.com"]
[Date "2024.02.06"]
[Round "3"]
[White "Tsschessulover"]
[Black "Vladimir_Zakhartsov"]
[Result "0-1"]
[WhiteElo "2582"]
[BlackElo "2816"]
[TimeControl "180+1"]
[EndTime "14:25:55 PST"]
[Termination "Vladimir_Zakhartsov won by resignation"]

1. d4 {[%clk 0:03:00.9]} 1... Nf6 {[%clk 0:02:57.2]} 2. Nf3 {[%clk 0:03:01.5]}
2... e6 {[%clk 0:02:57.4]} 3. Bf4 {[%clk 0:03:01]} 3... c5 {[%clk 0:02:57.5]} 4.
c3 {[%clk 0:02:57.9]} 4... Nc6 {[%clk 0:02:56]} 5. e3 {[%clk 0:02:55.3]} 5... d5
{[%clk 0:02:56]} 6. Nbd2 {[%clk 0:02:54.1]} 6... Bd6 {[%clk 0:02:56.1]} 7. Bg3
{[%clk 0:02:53]} 7... O-O {[%clk 0:02:56.1]} 8. Bd3 {[%clk 0:02:52.8]} 8... Qe7
{[%clk 0:02:53.6]} 9. Bxd6 {[%clk 0:02:12.5]} 9... Qxd6 {[%clk 0:02:54.5]} 10.
dxc5 {[%clk 0:02:12.3]} 10... Qxc5 {[%clk 0:02:53.7]} 11. e4 {[%clk 0:02:12.9]}
11... e5 {[%clk 0:02:52.8]} 12. exd5 {[%clk 0:02:05.2]} 12... Qxd5 {[%clk
0:02:51.1]} 13. Qc2 {[%clk 0:01:45.2]} 13... e4 {[%clk 0:02:37.7]} 14. Nxe4
{[%clk 0:01:26.4]} 14... Nxe4 {[%clk 0:02:31.2]} 15. Bxe4 {[%clk 0:01:26.3]}
15... Re8 {[%clk 0:02:31.1]} 16. O-O {[%clk 0:01:15.2]} 16... Rxe4 {[%clk
0:02:21.3]} 17. Rad1 {[%clk 0:01:14.2]} 17... Qf5 {[%clk 0:02:16.2]} 18. Rde1
{[%clk 0:01:06.6]} 18... Rxe1 {[%clk 0:02:09.5]} 19. Rxe1 {[%clk 0:01:04.5]}
19... Be6 {[%clk 0:02:04.8]} 0-1

[Event "Late-Titled-Tuesday-Blitz-February-06-2024"]
[Site "Chess.com"]
[Date "2024.02.06"]
[Round "3"]
[White "eCztery"]
[Black "Yeritsyaan"]
[Result "1-0"]
[WhiteElo "2428"]
[BlackElo "2599"]
[TimeControl "180+1"]
[EndTime "14:25:57 PST"]
[Termination "eCztery won by resignation"]

1. e4 {[%clk 0:03:00.9]} 1... e6 {[%clk 0:02:59.9]} 2. Nf3 {[%clk 0:02:53.7]}
2... d5 {[%clk 0:02:59.1]} 3. exd5 {[%clk 0:02:54.6]} 3... exd5 {[%clk
0:02:58.4]} 4. d4 {[%clk 0:02:55.5]} 4... Nc6 {[%clk 0:02:52.2]} 5. Bb5 {[%clk
0:02:55]} 5... Bd6 {[%clk 0:02:51.7]} 6. c4 {[%clk 0:02:55.1]} 6... Ne7 {[%clk
0:02:46.2]} 7. c5 {[%clk 0:02:53.5]} 7... a6 {[%clk 0:02:37.2]} 8. Bxc6+ {[%clk
0:02:52.7]} 8... Nxc6 {[%clk 0:02:38.1]} 9. cxd6 {[%clk 0:02:53.6]} 9... Qxd6
{[%clk 0:02:37.7]} 10. O-O {[%clk 0:02:52.3]} 10... O-O {[%clk 0:02:38.2]} 11.
Nc3 {[%clk 0:02:51.3]} 11... Bg4 {[%clk 0:02:38.7]} 12. Be3 {[%clk 0:02:49.4]}
12... Rfe8 {[%clk 0:02:39]} 13. h3 {[%clk 0:02:49.3]} 13... Bh5 {[%clk
0:02:39.3]} 14. Re1 {[%clk 0:02:44.5]} 14... Re6 {[%clk 0:02:39.2]} 15. g4
{[%clk 0:02:34.9]} 15... Bg6 {[%clk 0:02:39.3]} 16. Qd2 {[%clk 0:02:30]} 16...
Rae8 {[%clk 0:02:38.3]} 17. Bf4 {[%clk 0:02:26.5]} 17... Qb4 {[%clk 0:02:38.2]}
18. Rxe6 {[%clk 0:02:25.4]} 18... fxe6 {[%clk 0:02:37]} 19. Re1 {[%clk 0:02:24]}
19... Rf8 {[%clk 0:02:34.7]} 20. Ne5 {[%clk 0:02:17.9]} 20... Nxd4 {[%clk
0:02:24.7]} 21. Nxd5 {[%clk 0:02:04.2]} 21... Rxf4 {[%clk 0:01:52.2]} 22. Qxb4
{[%clk 0:02:02]} 22... exd5 {[%clk 0:01:41.3]} 23. Qe7 {[%clk 0:01:50.9]} 23...
Be4 {[%clk 0:01:39.4]} 24. Rxe4 {[%clk 0:01:41]} 24... dxe4 {[%clk 0:01:39]} 25.
Qd8+ {[%clk 0:01:39.1]} 25... Rf8 {[%clk 0:01:38.5]} 1-0

[Event "Late-Titled-Tuesday-Blitz-February-06-2024"]
[Site "Chess.com"]
[Date "2024.02.06"]
[Round "3"]
[White "rezamahdavi2008"]
[Black "szachmistrz2500"]
[Result "1-0"]
[WhiteElo "2837"]
[BlackElo "2505"]
[TimeControl "180+1"]
[EndTime "14:26:04 PST"]
[Termination "rezamahdavi2008 won by resignation"]

1. e4 {[%clk 0:03:00.9]} 1... c5 {[%clk 0:02:59.7]} 2. Nf3 {[%clk 0:03:01.4]}
2... d6 {[%clk 0:03:00.1]} 3. d4 {[%clk 0:03:02.1]} 3... cxd4 {[%clk 0:03:01]}
4. Nxd4 {[%clk 0:03:02.8]} 4... Nf6 {[%clk 0:03:01.4]} 5. Nc3 {[%clk 0:03:03.5]}
5... a6 {[%clk 0:03:01.9]} 6. Bc4 {[%clk 0:03:04.1]} 6... e6 {[%clk 0:03:01.5]}
7. Be3 {[%clk 0:03:04.4]} 7... b5 {[%clk 0:03:00.1]} 8. Bb3 {[%clk 0:03:04.8]}
8... Nbd7 {[%clk 0:03:00.2]} 9. Bxe6 {[%clk 0:03:03.8]} 9... fxe6 {[%clk
0:02:49.2]} 10. Nxe6 {[%clk 0:03:04.7]} 10... Qa5 {[%clk 0:02:47.2]} 11. a3
{[%clk 0:03:05.2]} 11... d5 {[%clk 0:02:38.4]} 12. b4 {[%clk 0:02:44.9]} 12...
Bxb4 {[%clk 0:02:37.1]} 13. axb4 {[%clk 0:02:45.8]} 13... Qxb4 {[%clk
0:02:37.2]} 14. Bd2 {[%clk 0:02:10.5]} 14... Qd6 {[%clk 0:02:17.8]} 15. Nxg7+
{[%clk 0:02:05.5]} 15... Kf7 {[%clk 0:02:17.9]} 16. Nf5 {[%clk 0:02:05.1]} 16...
Qe5 {[%clk 0:02:09.7]} 17. f4 {[%clk 0:01:55.2]} 17... Qe6 {[%clk 0:02:09.7]}
18. Nh6+ {[%clk 0:01:36.3]} 18... Kg7 {[%clk 0:01:56.3]} 19. f5 {[%clk 0:01:15]}
19... Qe5 {[%clk 0:01:55.5]} 20. Ng4 {[%clk 0:01:14.5]} 20... Qd4 {[%clk
0:01:46.7]} 21. Bh6+ {[%clk 0:01:13.4]} 1-0

[Event "Late-Titled-Tuesday-Blitz-February-06-2024"]
[Site "Chess.com"]
[Date "2024.02.06"]
[Round "3"]
[White "xakevicius91"]
[Black "Bkmzzzzz"]
[Result "0-1"]
[WhiteElo "2594"]
[BlackElo "2421"]
[TimeControl "180+1"]
[EndTime "14:26:10 PST"]
[Termination "Bkmzzzzz won by resignation"]

1. e4 {[%clk 0:02:59.7]} 1... d6 {[%clk 0:02:59.9]} 2. d4 {[%clk 0:02:58.3]}
2... Nf6 {[%clk 0:03:00.1]} 3. Nc3 {[%clk 0:02:58]} 3... e5 {[%clk 0:03:00.5]}
4. Nge2 {[%clk 0:02:58.1]} 4... Nbd7 {[%clk 0:02:57.8]} 5. h3 {[%clk 0:02:54.9]}
5... Be7 {[%clk 0:02:57.8]} 6. g4 {[%clk 0:02:54.7]} 6... O-O {[%clk 0:02:58.1]}
7. Bg2 {[%clk 0:02:54.7]} 7... c6 {[%clk 0:02:58]} 8. a4 {[%clk 0:02:54.6]} 8...
a5 {[%clk 0:02:49.6]} 9. g5 {[%clk 0:02:53.5]} 9... Nh5 {[%clk 0:02:40.5]} 10.
Bf3 {[%clk 0:02:53.4]} 10... Nf4 {[%clk 0:02:28.1]} 11. Nxf4 {[%clk 0:02:53.4]}
11... exf4 {[%clk 0:02:29]} 12. h4 {[%clk 0:02:54]} 12... f5 {[%clk 0:02:23.9]}
13. Qd3 {[%clk 0:02:28.6]} 13... g6 {[%clk 0:01:32.4]} 14. Bd2 {[%clk 0:02:25]}
14... fxe4 {[%clk 0:01:25.3]} 15. Bxe4 {[%clk 0:02:18.3]} 15... d5 {[%clk
0:01:25.9]} 16. Bf3 {[%clk 0:02:09.4]} 16... Nb6 {[%clk 0:01:15.6]} 17. O-O-O
{[%clk 0:02:09.1]} 17... Bf5 {[%clk 0:01:12.2]} 18. Qf1 {[%clk 0:02:09.6]} 18...
Nc4 {[%clk 0:01:08.8]} 19. Qg2 {[%clk 0:02:03.5]} 19... Qb6 {[%clk 0:00:56.2]}
20. b3 {[%clk 0:01:58]} 20... Ba3+ {[%clk 0:00:54.3]} 21. Kb1 {[%clk 0:01:56.4]}
21... Qxb3+ {[%clk 0:00:54.6]} 0-1

[Event "Late-Titled-Tuesday-Blitz-February-06-2024"]
[Site "Chess.com"]
[Date "2024.02.06"]
[Round "3"]
[White "viniciusrego"]
[Black "yuriydovzik"]
[Result "1-0"]
[WhiteElo "2468"]
[BlackElo "2208"]
[TimeControl "180+1"]
[EndTime "14:26:20 PST"]
[Termination "viniciusrego won by resignation"]

1. e4 {[%clk 0:03:00.9]} 1... Nf6 {[%clk 0:02:56.6]} 2. d3 {[%clk 0:02:59.4]}
2... d5 {[%clk 0:02:53.3]} 3. Nd2 {[%clk 0:02:59.3]} 3... c5 {[%clk 0:02:48.6]}
4. Ngf3 {[%clk 0:02:56.8]} 4... Nc6 {[%clk 0:02:47.6]} 5. g3 {[%clk 0:02:52.9]}
5... dxe4 {[%clk 0:02:45.2]} 6. dxe4 {[%clk 0:02:53.8]} 6... e6 {[%clk
0:02:35.4]} 7. Bg2 {[%clk 0:02:50.9]} 7... Be7 {[%clk 0:02:34.5]} 8. O-O {[%clk
0:02:50.4]} 8... O-O {[%clk 0:02:33.7]} 9. c3 {[%clk 0:02:47.8]} 9... b6 {[%clk
0:02:32.9]} 10. Qe2 {[%clk 0:02:45.1]} 10... a5 {[%clk 0:02:30.2]} 11. Nc4
{[%clk 0:02:18.7]} 11... Ba6 {[%clk 0:02:20.9]} 12. a4 {[%clk 0:02:15.2]} 12...
e5 {[%clk 0:02:04.3]} 13. Bg5 {[%clk 0:02:12.8]} 13... h6 {[%clk 0:01:58.1]} 14.
Bxf6 {[%clk 0:02:12.6]} 14... Bxf6 {[%clk 0:01:57.9]} 15. Rfd1 {[%clk
0:02:09.5]} 15... Qc7 {[%clk 0:01:54.2]} 16. Bf1 {[%clk 0:02:08.2]} 16... Rad8
{[%clk 0:01:50.2]} 17. Qc2 {[%clk 0:02:03.6]} 17... Rxd1 {[%clk 0:01:36.9]} 18.
Rxd1 {[%clk 0:02:04.5]} 18... Rd8 {[%clk 0:01:34.9]} 19. Ne3 {[%clk 0:02:04.9]}
19... Bxf1 {[%clk 0:01:30.8]} 20. Kxf1 {[%clk 0:02:03.6]} 20... Rxd1+ {[%clk
0:01:25.9]} 21. Qxd1 {[%clk 0:02:04.5]} 21... Qd8 {[%clk 0:01:23]} 22. Nd5
{[%clk 0:02:04.2]} 22... Be7 {[%clk 0:01:12.8]} 23. Ne1 {[%clk 0:01:57.8]} 23...
Bf8 {[%clk 0:01:10.3]} 24. Nc2 {[%clk 0:01:57.6]} 24... Ne7 {[%clk 0:00:59.6]}
25. Nf6+ {[%clk 0:01:54.3]} 1-0

[Event "Late-Titled-Tuesday-Blitz-February-06-2024"]
[Site "Chess.com"]
[Date "2024.02.06"]
[Round "3"]
[White "Redzishchess"]
[Black "Kiborg95"]
[Result "0-1"]
[WhiteElo "2529"]
[BlackElo "2843"]
[TimeControl "180+1"]
[EndTime "14:26:27 PST"]
[Termination "Kiborg95 won by resignation"]

1. d4 {[%clk 0:03:00.9]} 1... d6 {[%clk 0:03:00.5]} 2. c4 {[%clk 0:03:01.2]}
2... e5 {[%clk 0:02:56.7]} 3. dxe5 {[%clk 0:03:00.2]} 3... dxe5 {[%clk
0:02:57.6]} 4. Qxd8+ {[%clk 0:03:00.7]} 4... Kxd8 {[%clk 0:02:58.5]} 5. Nf3
{[%clk 0:03:01.2]} 5... f6 {[%clk 0:02:59]} 6. Nc3 {[%clk 0:03:01.3]} 6... Be6
{[%clk 0:02:59.5]} 7. e3 {[%clk 0:02:59.1]} 7... Nd7 {[%clk 0:02:59.6]} 8. Bd2
{[%clk 0:02:44.4]} 8... c6 {[%clk 0:02:59.9]} 9. O-O-O {[%clk 0:02:44.1]} 9...
Kc7 {[%clk 0:03:00.4]} 10. h4 {[%clk 0:02:41.6]} 10... Nh6 {[%clk 0:03:00]} 11.
h5 {[%clk 0:02:41.5]} 11... a5 {[%clk 0:02:59.2]} 12. a4 {[%clk 0:02:14.8]}
12... Nc5 {[%clk 0:02:51.5]} 13. Kb1 {[%clk 0:01:28.4]} 13... Bf5+ {[%clk
0:02:49.9]} 14. Ka2 {[%clk 0:01:28.1]} 14... Rd8 {[%clk 0:02:44.5]} 15. Be2
{[%clk 0:01:27.3]} 15... Be7 {[%clk 0:02:40.6]} 16. Bc1 {[%clk 0:00:53.6]} 16...
Bc2 {[%clk 0:02:40.5]} 17. Rxd8 {[%clk 0:00:50.8]} 17... Rxd8 {[%clk 0:02:41.4]}
18. Nd2 {[%clk 0:00:39]} 18... e4 {[%clk 0:02:19.6]} 19. b3 {[%clk 0:00:33.9]}
19... f5 {[%clk 0:02:17.3]} 20. Kb2 {[%clk 0:00:31]} 20... Bd3 {[%clk
0:02:17.8]} 21. Bd1 {[%clk 0:00:20.3]} 21... Bf6 {[%clk 0:02:17]} 22. Nb1 {[%clk
0:00:19.4]} 22... Bxb1 {[%clk 0:02:16.2]} 0-1

[Event "Late-Titled-Tuesday-Blitz-February-06-2024"]
[Site "Chess.com"]
[Date "2024.02.06"]
[Round "3"]
[White "lucliasco"]
[Black "Mikasinski"]
[Result "1-0"]
[WhiteElo "2879"]
[BlackElo "2601"]
[TimeControl "180+1"]
[EndTime "14:26:32 PST"]
[Termination "lucliasco won by checkmate"]

1. e4 {[%clk 0:02:56.8]} 1... c5 {[%clk 0:02:59.8]} 2. Nc3 {[%clk 0:02:56.3]}
2... Nc6 {[%clk 0:02:59.4]} 3. Bb5 {[%clk 0:02:55.5]} 3... Nd4 {[%clk
0:02:59.5]} 4. Nf3 {[%clk 0:02:55]} 4... a6 {[%clk 0:02:59.5]} 5. Bd3 {[%clk
0:02:54.6]} 5... Nc6 {[%clk 0:02:59]} 6. O-O {[%clk 0:02:51.2]} 6... d6 {[%clk
0:02:58.9]} 7. h3 {[%clk 0:02:42.1]} 7... g6 {[%clk 0:02:58.6]} 8. Nd5 {[%clk
0:02:42.4]} 8... Bg7 {[%clk 0:02:56.8]} 9. c3 {[%clk 0:02:42.9]} 9... Nf6 {[%clk
0:02:56.8]} 10. Nxf6+ {[%clk 0:02:40.5]} 10... Bxf6 {[%clk 0:02:56]} 11. Bc2
{[%clk 0:02:40.2]} 11... e5 {[%clk 0:02:47.2]} 12. d3 {[%clk 0:02:41.1]} 12...
Be6 {[%clk 0:02:44.4]} 13. Bb3 {[%clk 0:02:40.6]} 13... Qe7 {[%clk 0:02:41]} 14.
Bxe6 {[%clk 0:02:40.2]} 14... fxe6 {[%clk 0:02:40]} 15. Nh2 {[%clk 0:02:37.9]}
15... O-O-O {[%clk 0:02:33.1]} 16. b4 {[%clk 0:02:32.1]} 16... d5 {[%clk
0:02:18]} 17. Rb1 {[%clk 0:02:19.9]} 17... dxe4 {[%clk 0:02:11.1]} 18. b5 {[%clk
0:02:20]} 18... axb5 {[%clk 0:02:02.4]} 19. Rxb5 {[%clk 0:02:20.9]} 19... exd3
{[%clk 0:01:53.6]} 20. Qa4 {[%clk 0:02:20.2]} 20... d2 {[%clk 0:01:49.6]} 21.
Bxd2 {[%clk 0:02:11]} 21... Rxd2 {[%clk 0:01:48.5]} 22. Qa8+ {[%clk 0:02:11.8]}
22... Nb8 {[%clk 0:01:48.6]} 23. Ng4 {[%clk 0:02:12.2]} 23... Bg7 {[%clk
0:01:25.4]} 24. Rfb1 {[%clk 0:02:10.4]} 24... Rd7 {[%clk 0:01:10.6]} 25. Ne3
{[%clk 0:02:08.1]} 25... Rhd8 {[%clk 0:01:06.9]} 26. a4 {[%clk 0:02:01.7]} 26...
Qd6 {[%clk 0:01:05.4]} 27. Nc4 {[%clk 0:01:56.3]} 27... Qa6 {[%clk 0:01:01.4]}
28. Rxc5+ {[%clk 0:01:50.9]} 28... Rc7 {[%clk 0:00:57.5]} 29. Nb6+ {[%clk
0:01:50.7]} 29... Qxb6 {[%clk 0:00:58]} 30. Rxb6 {[%clk 0:01:51.2]} 30... Rxc5
{[%clk 0:00:58.5]} 31. Qxb7# {[%clk 0:01:51.2]} 1-0

[Event "Late-Titled-Tuesday-Blitz-February-06-2024"]
[Site "Chess.com"]
[Date "2024.02.06"]
[Round "3"]
[White "thesupera12"]
[Black "Nick12772"]
[Result "1-0"]
[WhiteElo "2519"]
[BlackElo "2376"]
[TimeControl "180+1"]
[EndTime "14:26:34 PST"]
[Termination "thesupera12 won by resignation"]

1. d4 {[%clk 0:03:00.9]} 1... Nf6 {[%clk 0:02:59.6]} 2. Bg5 {[%clk 0:02:59.8]}
2... d5 {[%clk 0:02:57.2]} 3. Bxf6 {[%clk 0:02:59.7]} 3... exf6 {[%clk
0:02:58.1]} 4. e3 {[%clk 0:03:00.6]} 4... Bd6 {[%clk 0:02:58.5]} 5. c4 {[%clk
0:03:00.7]} 5... dxc4 {[%clk 0:02:58.5]} 6. Nc3 {[%clk 0:03:01.1]} 6... c6
{[%clk 0:02:57]} 7. Bxc4 {[%clk 0:03:01.5]} 7... O-O {[%clk 0:02:57]} 8. Nf3
{[%clk 0:03:02.2]} 8... Bg4 {[%clk 0:02:56.4]} 9. h3 {[%clk 0:03:02.5]} 9... Bh5
{[%clk 0:02:52]} 10. O-O {[%clk 0:03:01.5]} 10... Nd7 {[%clk 0:02:50.9]} 11. Rc1
{[%clk 0:03:00.3]} 11... f5 {[%clk 0:02:48]} 12. Bd3 {[%clk 0:02:56.9]} 12... g6
{[%clk 0:02:38.4]} 13. Be2 {[%clk 0:02:53]} 13... Nf6 {[%clk 0:02:35.4]} 14. Qb3
{[%clk 0:02:50]} 14... Rb8 {[%clk 0:02:26.1]} 15. Rfd1 {[%clk 0:02:46.6]} 15...
Ne4 {[%clk 0:02:24.2]} 16. Rc2 {[%clk 0:02:33.7]} 16... Nxc3 {[%clk 0:02:14.2]}
17. Qxc3 {[%clk 0:02:31.9]} 17... Rc8 {[%clk 0:02:04.9]} 18. Rdc1 {[%clk
0:02:20.2]} 18... Bb8 {[%clk 0:01:55.4]} 19. Qc5 {[%clk 0:02:11.8]} 19... b6
{[%clk 0:01:47.2]} 20. Qc4 {[%clk 0:02:07.7]} 20... Qd6 {[%clk 0:01:43.2]} 21.
Ne5 {[%clk 0:02:07.2]} 21... Bxe2 {[%clk 0:01:40]} 22. Qxe2 {[%clk 0:02:04.4]}
22... c5 {[%clk 0:01:40.2]} 23. Nf3 {[%clk 0:02:00.5]} 23... Qd5 {[%clk
0:01:23.4]} 24. dxc5 {[%clk 0:01:56.5]} 24... bxc5 {[%clk 0:01:08.3]} 25. b3
{[%clk 0:01:55.8]} 25... Bd6 {[%clk 0:01:05.3]} 26. Qa6 {[%clk 0:01:51.6]} 26...
Rc7 {[%clk 0:00:58.4]} 27. Rd2 {[%clk 0:01:51.5]} 27... Qc6 {[%clk 0:00:58.7]}
28. Rxd6 {[%clk 0:01:44.1]} 1-0

[Event "Late-Titled-Tuesday-Blitz-February-06-2024"]
[Site "Chess.com"]
[Date "2024.02.06"]
[Round "3"]
[White "Andrei_Skvortsov"]
[Black "dcann0n88"]
[Result "1-0"]
[WhiteElo "2682"]
[BlackElo "2461"]
[TimeControl "180+1"]
[EndTime "14:26:37 PST"]
[Termination "Andrei_Skvortsov won by resignation"]

1. e4 {[%clk 0:03:00.9]} 1... c5 {[%clk 0:02:55.8]} 2. d4 {[%clk 0:03:00.3]}
2... cxd4 {[%clk 0:02:56]} 3. Qxd4 {[%clk 0:03:01.2]} 3... Nc6 {[%clk
0:02:52.6]} 4. Qe3 {[%clk 0:03:01.3]} 4... Nf6 {[%clk 0:02:51.4]} 5. c4 {[%clk
0:03:01.2]} 5... e6 {[%clk 0:02:47.2]} 6. Nc3 {[%clk 0:03:01.7]} 6... d6 {[%clk
0:02:46.9]} 7. Be2 {[%clk 0:03:00.4]} 7... Be7 {[%clk 0:02:47.3]} 8. Nf3 {[%clk
0:02:58.5]} 8... O-O {[%clk 0:02:47.9]} 9. O-O {[%clk 0:02:59.1]} 9... b6 {[%clk
0:02:45.9]} 10. Rd1 {[%clk 0:02:58.5]} 10... a6 {[%clk 0:02:35.9]} 11. e5 {[%clk
0:02:51.8]} 11... Ng4 {[%clk 0:02:34.7]} 12. Qe4 {[%clk 0:02:51.9]} 12... Ngxe5
{[%clk 0:02:18.2]} 13. Nxe5 {[%clk 0:02:49.3]} 13... Nxe5 {[%clk 0:02:18.6]} 14.
Qxa8 {[%clk 0:02:48]} 14... Qc7 {[%clk 0:02:13.5]} 15. Qe4 {[%clk 0:02:47.4]}
15... Bb7 {[%clk 0:02:13.4]} 16. Qf4 {[%clk 0:02:37]} 16... Rc8 {[%clk
0:01:30.5]} 17. Be3 {[%clk 0:02:28.1]} 17... Qc6 {[%clk 0:01:25.4]} 18. Bf1
{[%clk 0:02:26.6]} 18... h6 {[%clk 0:01:03.2]} 19. Qg3 {[%clk 0:02:12.4]} 19...
Kh8 {[%clk 0:01:02.2]} 20. Rac1 {[%clk 0:02:07.5]} 20... Bh4 {[%clk 0:00:53.7]}
21. Qxh4 {[%clk 0:01:40.1]} 21... Nf3+ {[%clk 0:00:53.2]} 22. gxf3 {[%clk
0:01:40.5]} 22... Qxf3 {[%clk 0:00:53.4]} 23. Nd5 {[%clk 0:01:40.5]} 1-0

[Event "Late-Titled-Tuesday-Blitz-February-06-2024"]
[Site "Chess.com"]
[Date "2024.02.06"]
[Round "3"]
[White "MajorCoast"]
[Black "marianokar"]
[Result "0-1"]
[WhiteElo "2204"]
[BlackElo "2455"]
[TimeControl "180+1"]
[EndTime "14:26:40 PST"]
[Termination "marianokar won by checkmate"]

1. e4 {[%clk 0:03:00.4]} 1... e6 {[%clk 0:02:55.5]} 2. d4 {[%clk 0:02:54.6]}
2... d5 {[%clk 0:02:56.4]} 3. exd5 {[%clk 0:02:54.9]} 3... exd5 {[%clk 0:02:55]}
4. Nf3 {[%clk 0:02:55.6]} 4... Nc6 {[%clk 0:02:54.7]} 5. Bd3 {[%clk 0:02:47.9]}
5... Bg4 {[%clk 0:02:54.9]} 6. h3 {[%clk 0:02:47.3]} 6... Bh5 {[%clk 0:02:53.3]}
7. g4 {[%clk 0:02:46.8]} 7... Bg6 {[%clk 0:02:53]} 8. c3 {[%clk 0:02:46.2]} 8...
Bd6 {[%clk 0:02:52.1]} 9. Bg5 {[%clk 0:02:45]} 9... f6 {[%clk 0:02:51]} 10. Be3
{[%clk 0:02:42.9]} 10... Nge7 {[%clk 0:02:50.5]} 11. h4 {[%clk 0:02:30.7]} 11...
Qd7 {[%clk 0:02:41.8]} 12. h5 {[%clk 0:02:29]} 12... Bxd3 {[%clk 0:02:41.1]} 13.
Qxd3 {[%clk 0:02:29.9]} 13... Qxg4 {[%clk 0:02:40.9]} 14. Nbd2 {[%clk
0:02:18.3]} 14... O-O-O {[%clk 0:02:39.8]} 15. O-O-O {[%clk 0:02:16.6]} 15...
Rde8 {[%clk 0:02:30.3]} 16. Rdg1 {[%clk 0:02:14.7]} 16... Qf5 {[%clk 0:02:29.5]}
17. Qb5 {[%clk 0:02:14]} 17... a6 {[%clk 0:02:26.6]} 18. Qb3 {[%clk 0:02:12.8]}
18... g5 {[%clk 0:02:21.4]} 19. c4 {[%clk 0:01:58.9]} 19... Na5 {[%clk
0:02:18.7]} 20. Qa4 {[%clk 0:01:57.2]} 20... Nxc4 {[%clk 0:02:17.9]} 21. Nxc4
{[%clk 0:01:57.6]} 21... dxc4 {[%clk 0:02:18.5]} 22. Qxc4 {[%clk 0:01:58.3]}
22... Qxf3 {[%clk 0:02:15.7]} 23. Kb1 {[%clk 0:01:56.1]} 23... Nd5 {[%clk
0:02:12.3]} 24. Rc1 {[%clk 0:01:53.4]} 24... Kb8 {[%clk 0:02:07]} 25. Qb3 {[%clk
0:01:52.3]} 25... Nxe3 {[%clk 0:01:59.9]} 26. fxe3 {[%clk 0:01:52]} 26... Rxe3
{[%clk 0:02:00]} 27. Qa4 {[%clk 0:01:51.4]} 27... Rhe8 {[%clk 0:01:53.9]} 28.
Rhf1 {[%clk 0:01:51.1]} 28... Qe4+ {[%clk 0:01:53.8]} 29. Ka1 {[%clk 0:01:49.9]}
29... Bf4 {[%clk 0:01:49.5]} 30. Rcd1 {[%clk 0:01:38.1]} 30... Re2 {[%clk
0:01:46.7]} 31. Qb3 {[%clk 0:01:28.3]} 31... Qc2 {[%clk 0:01:43.6]} 32. Qb4
{[%clk 0:01:24.9]} 32... Bd6 {[%clk 0:01:32.6]} 33. Qxd6 {[%clk 0:01:16.1]}
33... Qxb2# {[%clk 0:01:29.9]} 0-1